{"text_format":"1","workbook":"xlsx","n_sheets":1,"sheets":["Presupuesto Proyecto Ab2"],"not_rendered":{"charts":0,"images":2,"macros":1,"external_links":0,"defined_names":0,"comments":1,"pivot_tables":0},"unopened":[],"bounds":{"document_bytes":16777216,"sheet_cells":100000,"rows_first":2000,"rows_last":500,"rows_between":2000,"halvings":0,"cell_chars":16384,"cell_head_chars":4096},"cells_cut":0,"cells_raw":0,"read":"whole","date_system":"1900"}

{"sheet":"Presupuesto Proyecto Ab2","index":0,"n_rows":63,"n_cols":16,"rows_kept":63,"cut":false,"hidden":false,"merged":[]}
[null,null,null,null,null,"Documento básico 3"]
[null,null,null,null,null,"Ámbito temático \"A\": Acompañamiento y Formación"]
["Subvencions de l'Ajuntament de Barcelona per a",null,null,null,null,"Modalidad \"b\": Soporte a proyectos de formación interna de la entidad"]
["la promoció i reforç de l'economia social i solidària 2019",null,null,null,null,"para la mejora de la gestión, innovación y nuevas líneas de negocio."]
[null,null,null,null,null,"Se deben rellenar las celdas en blanco, y añadir filas en caso que sea necesario."]
[null,null,null,null,null,"Consultar anotaciones a pie de página antes de completar los datos."]
[]
["DATOS BÁSICOS"]
["Nombre de la persona jurídica/física"]
["NIF de la persona jurídica/física"]
["Denominación del proyecto"]
["Importe total del proyecto"]
["Importe imputable a la subvención municipal"]
["% de l’Importe solicitado a la subvención municipal a cambiar en REC (Recurs Econòmic Ciutadà) "]
["Importe de l'aportació / Cofinanciación de la entidad"]
["% de l'Importe solicitado respecto al total del proyecto",{"$f":"B13/B12","v":{"$error":"#DIV/0!"}}]
["Fecha de inicio del proyecto subvencionado (dd/mm/aaaa)"]
["Fecha de fin del proyecto subvencionado (dd/mm/aaaa)"]
[]
["PREVISIÓN DE GASTOS DEL PROYECTO",null,null,null,null,null,"PREVISIÓN DE GASTOS DEL PROYECTO",null,null,null,null,null,"PREVISIÓ DE DESPESES DEL PROJECTE (b1 + b2) "]
["b1. Formación  grupal pera personas socias, trabajadoras y voluntarias de la entidad, de un mínimo de 10 horas. ",null,null,null,null,null,"b2. Gastos de matriculación ddel personal de la entidad en acciones formativas externas. "]
[]
["Partidas","Importe total del proyecto","Importe imputable a la subvención municipal","Importe de l'aportació / Cofinanciación de la entidad",null,null,"Partidas","Importe total del proyecto","Importe imputable a la subvención municipal","Importe de l'aportació / Cofinanciación de la entidad",null,null,"PARTIDES","Import total del projecte","Import imputable a la subvenció municipal","Import de l'aportació / Cofinançament de l'entitat"]
["1.  Honorarios de los/as formadores/as externos/as. ",{"$f":"SUM(DespesesProjecteAb1[[#This Row],[Importe imputable a la subvención municipal]],DespesesProjecteAb1[[#This Row],[Importe de l''aportació / Cofinanciación de la entidad]])","v":0},{"$f":"SUM(C25:C27)","v":0},{"$f":"SUM(D25:D27)","v":0},null,null,"Gastos de matriculación en acciones formativas externas",{"$f":"SUM(DespesesProjecteAb2[[#This Row],[Importe imputable a la subvención municipal]],DespesesProjecteAb2[[#This Row],[Importe de l''aportació / Cofinanciación de la entidad]])","v":0},{"$f":"SUM(I25:I35)","v":0},{"$f":"SUM(J25:J35)","v":0},null,null,"TOTAL DE DESPESES PREVISTES",{"$f":"SUM(B56,H36)","v":0},{"$f":"SUM(C56,I36)","v":0},{"$f":"SUM(D56,J36)","v":0}]
[]
[null,null,null,null,null,null,null,null,null,null,null,null,"1.  La quantia de la subvenció atorgada no superarà el 80% de la despesa total del projecte a subvencionar. "]
[null,null,null,null,null,null,null,null,null,null,null,null,"2.  Les sol·licituds poden contenir una proposta de projecte de formació que contingui les dues modalitats (b1. i b2.), o bé tant sols una submodalitat. "]
["2.  Coste salarial de las personas participantes (Max 40%) ",{"$f":"SUM(DespesesProjecteAb1[[#This Row],[Importe imputable a la subvención municipal]],DespesesProjecteAb1[[#This Row],[Importe de l''aportació / Cofinanciación de la entidad]])","v":0},{"$f":"SUM(C29:C31)","v":0},{"$f":"SUM(D29:D31)","v":0},null,null,null,null,null,null,null,null,"3.   En qualsevol cas, l’import màxim de subvenció, tant si la sol·licitud conté una o dues submodalitats,  serà de 4.500 €."]
[null,null,null,null,null,null,null,null,null,null,null,null,"4. En el cas que la sol·licitud presentada sobrepassi l’import màxim, es considerarà com a import sol·licitat el màxim de l'establert a la convocatòria."]
[]
[]
["3.  Alquiler de bienes muebles/inmuebles directamente vinculados al proyecto.",{"$f":"SUM(DespesesProjecteAb1[[#This Row],[Importe imputable a la subvención municipal]],DespesesProjecteAb1[[#This Row],[Importe de l''aportació / Cofinanciación de la entidad]])","v":0},{"$f":"SUM(C33:C35)","v":0},{"$f":"SUM(D33:D35)","v":0}]
[]
[]
[]
["4.  Adquisición de materiales y bienes consumibles íntegramente imputables al proyecto.",{"$f":"SUM(DespesesProjecteAb1[[#This Row],[Importe imputable a la subvención municipal]],DespesesProjecteAb1[[#This Row],[Importe de l''aportació / Cofinanciación de la entidad]])","v":0},{"$f":"SUM(C37:C39)","v":0},{"$f":"SUM(D37:D39)","v":0},null,null,"TOTAL DE GASTOS PREVISTOS",{"$f":"SUM(H24)","v":0},{"$f":"SUM(I24)","v":0},{"$f":"SUM(J24)","v":0}]
[]
[null,null,null,null,null,null,"1.  La cuantía de la subvención otorgada no superará el 80% del gasto total del proyecto a subvencionar. "]
[null,null,null,null,null,null,"2.  Las solicitudes pueden contener una propuesta de formación que contenga las dos submodalidaes (b1 y b2) o sólo una submodalidad."]
["5.  Transporte – mensajería imputables al proyecto",{"$f":"SUM(DespesesProjecteAb1[[#This Row],[Importe imputable a la subvención municipal]],DespesesProjecteAb1[[#This Row],[Importe de l''aportació / Cofinanciación de la entidad]])","v":0},{"$f":"SUM(C41:C43)","v":0},{"$f":"SUM(D41:D43)","v":0},null,null,"3.  En cualquier caso, el importe máximo de subvención, tanto si la solicigud contien una o dos submodalidades, será de 4.500 €.",null,null,null," "]
[null,null,null,null,null,null,"4.  En caso que la solicitud presentada sobrepase el importe máximo, se considerará como importe solicitado el máximo de lo establecido en la convocatoria. "]
[null,null,null,null,null,null,"5.  No son imputables en esta modalidad ningun gasto indirecto de los detallados en el apartado  13.3 de las bases reguladoras."]
[null,null,null,null,null,null,"6.  La formación a subvencionar debe tener una duración minima de 150 horas y/o un coste mínimo de 300 € para cada participante."]
["6.  Publicidad y propaganda de las actividades vinculadas al proyecto.",{"$f":"SUM(DespesesProjecteAb1[[#This Row],[Importe imputable a la subvención municipal]],DespesesProjecteAb1[[#This Row],[Importe de l''aportació / Cofinanciación de la entidad]])","v":0},{"$f":"SUM(C45:C47)","v":0},{"$f":"SUM(D45:D47)","v":0}]
[]
[]
[]
["7.  Seguros",{"$f":"SUM(DespesesProjecteAb1[[#This Row],[Importe imputable a la subvención municipal]],DespesesProjecteAb1[[#This Row],[Importe de l''aportació / Cofinanciación de la entidad]])","v":0},{"$f":"SUM(C49:C51)","v":0},{"$f":"SUM(D49:D51)","v":0}]
[]
[]
[]
["8.  Viajes y desplazamientos imputables a las actividades del proyecto. ",{"$f":"SUM(DespesesProjecteAb1[[#This Row],[Importe imputable a la subvención municipal]],DespesesProjecteAb1[[#This Row],[Importe de l''aportació / Cofinanciación de la entidad]])","v":0},{"$f":"SUM(C53:C55)","v":0},{"$f":"SUM(D53:D55)","v":0}]
[]
[]
[]
["TOTAL DE GASTOS PREVISTOS",{"$f":"SUM(B24,B28,B32,B36,B40,B44,B48,B52)","v":0},{"$f":"SUM(C24,C28,C32,C36,C40,C44,C48,C52)","v":0},{"$f":"SUM(D24,D28,D32,D36,D40,D44,D48,D52)","v":0}]
[]
[]
["1.  La cuantía de la subvención otorgada no superará el 80% del gasto total del proyecto a subvencionar. "]
["2.  Las solicitudes pueden contener una propuesta de formación que contenga las dos submodalidaes (b1 y b2) o sólo una submodalidad."]
["3.  En cualquier caso, el importe máximo de subvención, tanto si la solicigud contien una o dos submodalidades, será de 4.500 €."]
["4.  En caso que la solicitud presentada sobrepase el importe máximo, se considerará como importe solicitado el máximo de lo establecido en la convocatoria. "]
["5.  No son imputables en esta modalidad ningun gasto indirecto de los detallados en el apartado  13.3 de las bases reguladoras."]